[Event "Early-Titled-Tuesday-Blitz-May-14-2024"]
[Site "Chess.com"]
[Date "2024.05.14"]
[Round "6"]
[White "vladgoncharov"]
[Black "juancruzarias"]
[Result "1/2-1/2"]
[WhiteElo "2570"]
[BlackElo "2691"]
[TimeControl "180+1"]
[EndTime "9:10:23 PDT"]
[Termination "Game drawn - insufficient material"]

1. d4 {[%clk 0:03:00.9]} 1... Nf6 {[%clk 0:02:55.8]} 2. c4 {[%clk 0:03:00.1]}
2... e6 {[%clk 0:02:55.3]} 3. Nc3 {[%clk 0:02:59.7]} 3... d5 {[%clk 0:02:54.7]}
4. Bg5 {[%clk 0:02:58.7]} 4... dxc4 {[%clk 0:02:53]} 5. e3 {[%clk 0:02:55.9]}
5... c5 {[%clk 0:02:51.1]} 6. Bxc4 {[%clk 0:02:55]} 6... cxd4 {[%clk 0:02:49.9]}
7. exd4 {[%clk 0:02:55.2]} 7... Nc6 {[%clk 0:02:50.1]} 8. Nf3 {[%clk 0:02:54.8]}
8... Be7 {[%clk 0:02:48.4]} 9. O-O {[%clk 0:02:53.6]} 9... O-O {[%clk
0:02:48.7]} 10. Qd2 {[%clk 0:02:47.5]} 10... Qa5 {[%clk 0:02:42.6]} 11. Rfe1
{[%clk 0:02:34]} 11... Rd8 {[%clk 0:02:37.5]} 12. Rad1 {[%clk 0:02:28.3]} 12...
h6 {[%clk 0:02:31.7]} 13. Bh4 {[%clk 0:02:19.9]} 13... Bd7 {[%clk 0:02:13.1]}
14. a3 {[%clk 0:02:13.5]} 14... Be8 {[%clk 0:02:06.5]} 15. Qe2 {[%clk 0:02:04]}
15... Nh5 {[%clk 0:01:54.2]} 16. Bxe7 {[%clk 0:01:52.4]} 16... Nxe7 {[%clk
0:01:55.1]} 17. Ne5 {[%clk 0:01:52.5]} 17... Nf6 {[%clk 0:01:52.2]} 18. Qf3
{[%clk 0:01:47.9]} 18... Bc6 {[%clk 0:01:48.7]} 19. Qh3 {[%clk 0:01:44.8]} 19...
Bd5 {[%clk 0:01:40.4]} 20. Bd3 {[%clk 0:01:19.4]} 20... Rac8 {[%clk 0:01:34.4]}
21. Bb1 {[%clk 0:01:14.4]} 21... Qb6 {[%clk 0:01:30]} 22. Rd2 {[%clk 0:01:10.4]}
22... Nc6 {[%clk 0:01:25.2]} 23. Nxd5 {[%clk 0:01:08.4]} 23... exd5 {[%clk
0:01:18.5]} 24. Red1 {[%clk 0:00:34.6]} 24... Nxd4 {[%clk 0:01:09.9]} 25. Ng4
{[%clk 0:00:27.6]} 25... Nxg4 {[%clk 0:00:50.7]} 26. Qxg4 {[%clk 0:00:25.3]}
26... Ne6 {[%clk 0:00:47.3]} 27. h4 {[%clk 0:00:20.3]} 27... Rc4 {[%clk
0:00:39.8]} 28. Qg3 {[%clk 0:00:11.6]} 28... Qc7 {[%clk 0:00:33.8]} 29. Qxc7
{[%clk 0:00:09.5]} 29... Rxc7 {[%clk 0:00:31]} 30. Ba2 {[%clk 0:00:09.6]} 30...
Rcd7 {[%clk 0:00:17.7]} 31. Rxd5 {[%clk 0:00:09.5]} 31... Rxd5 {[%clk
0:00:14.2]} 32. Rxd5 {[%clk 0:00:10.4]} 32... Rxd5 {[%clk 0:00:13.1]} 33. Bxd5
{[%clk 0:00:11.3]} 33... Nd8 {[%clk 0:00:13.2]} 34. b4 {[%clk 0:00:11.4]} 34...
Kf8 {[%clk 0:00:13.7]} 35. f4 {[%clk 0:00:11.7]} 35... Ke7 {[%clk 0:00:14.3]}
36. Kf2 {[%clk 0:00:12.2]} 36... Kd6 {[%clk 0:00:14.9]} 37. Be4 {[%clk
0:00:12.3]} 37... b6 {[%clk 0:00:14.7]} 38. Ke3 {[%clk 0:00:12.4]} 38... Ne6
{[%clk 0:00:14.4]} 39. Bd3 {[%clk 0:00:12.2]} 39... Nc7 {[%clk 0:00:13.9]} 40.
Bc4 {[%clk 0:00:12.3]} 40... f6 {[%clk 0:00:13.8]} 41. Ke4 {[%clk 0:00:12.4]}
41... Ne8 {[%clk 0:00:14.1]} 42. g4 {[%clk 0:00:12.1]} 42... a5 {[%clk
0:00:10.3]} 43. g5 {[%clk 0:00:09.8]} 43... axb4 {[%clk 0:00:10.6]} 44. axb4
{[%clk 0:00:09.4]} 44... hxg5 {[%clk 0:00:10.9]} 45. hxg5 {[%clk 0:00:09.7]}
45... fxg5 {[%clk 0:00:11.4]} 46. fxg5 {[%clk 0:00:09.9]} 46... Nc7 {[%clk
0:00:08]} 47. Kf5 {[%clk 0:00:09.6]} 47... Ke7 {[%clk 0:00:08.3]} 48. Kg6 {[%clk
0:00:08.8]} 48... Kf8 {[%clk 0:00:08.3]} 49. Kf5 {[%clk 0:00:07.9]} 49... Ke7
{[%clk 0:00:08.3]} 50. Ke5 {[%clk 0:00:08.2]} 50... Kd7 {[%clk 0:00:08.5]} 51.
b5 {[%clk 0:00:07.2]} 51... Ke7 {[%clk 0:00:08.6]} 52. Bd3 {[%clk 0:00:07]}
52... Ne8 {[%clk 0:00:06.6]} 53. Kd5 {[%clk 0:00:06.8]} 53... Kd7 {[%clk
0:00:06.9]} 54. Bf5+ {[%clk 0:00:06.5]} 54... Ke7 {[%clk 0:00:07]} 55. Kc6
{[%clk 0:00:06.5]} 55... Nd6 {[%clk 0:00:07]} 56. Bd3 {[%clk 0:00:06.5]} 56...
Nf7 {[%clk 0:00:07.3]} 57. Kxb6 {[%clk 0:00:04.2]} 57... Nxg5 {[%clk 0:00:07.8]}
58. Kc7 {[%clk 0:00:04.4]} 58... Nf7 {[%clk 0:00:06.8]} 59. b6 {[%clk
0:00:03.8]} 59... Nd6 {[%clk 0:00:07.4]} 60. Be2 {[%clk 0:00:03.2]} 60... g5
{[%clk 0:00:07.4]} 61. Kc6 {[%clk 0:00:02.9]} 61... Ke6 {[%clk 0:00:07.1]} 62.
Bg4+ {[%clk 0:00:02.9]} 62... Ke5 {[%clk 0:00:07.5]} 63. Bh3 {[%clk 0:00:03.2]}
63... Nc4 {[%clk 0:00:05]} 64. b7 {[%clk 0:00:01.7]} 64... Na5+ {[%clk
0:00:05.2]} 65. Kc7 {[%clk 0:00:01.9]} 65... Nxb7 {[%clk 0:00:06.1]} 66. Kxb7
{[%clk 0:00:02.4]} 66... Kf4 {[%clk 0:00:07]} 67. Bc8 {[%clk 0:00:02.3]} 67...
Ke5 {[%clk 0:00:07.9]} 68. Kc6 {[%clk 0:00:02.2]} 68... Kf6 {[%clk 0:00:08.7]}
69. Kc5 {[%clk 0:00:02.6]} 69... Ke5 {[%clk 0:00:09.6]} 70. Kc4 {[%clk
0:00:03.1]} 70... Ke4 {[%clk 0:00:10.5]} 71. Kc3 {[%clk 0:00:03.7]} 71... g4
{[%clk 0:00:11.4]} 72. Kd2 {[%clk 0:00:03.9]} 72... g3 {[%clk 0:00:12.3]} 73.
Ke1 {[%clk 0:00:03.9]} 73... Kf3 {[%clk 0:00:13.2]} 74. Kf1 {[%clk 0:00:04.3]}
74... g2+ {[%clk 0:00:12.7]} 75. Kg1 {[%clk 0:00:05.2]} 75... Kg3 {[%clk
0:00:13.5]} 76. Bb7 {[%clk 0:00:06.1]} 76... Kh3 {[%clk 0:00:13.5]} 77. Bxg2+
{[%clk 0:00:07]} 1/2-1/2

[Event "Early-Titled-Tuesday-Blitz-May-14-2024"]
[Site "Chess.com"]
[Date "2024.05.14"]
[Round "6"]
[White "suyu28"]
[Black "gau248"]
[Result "1-0"]
[WhiteElo "2837"]
[BlackElo "2602"]
[TimeControl "180+1"]
[EndTime "9:10:34 PDT"]
[Termination "suyu28 won by resignation"]

1. b4 {[%clk 0:03:00.4]} 1... a5 {[%clk 0:02:58.4]} 2. b5 {[%clk 0:02:59.4]}
2... d5 {[%clk 0:02:56.9]} 3. a4 {[%clk 0:02:59]} 3... e5 {[%clk 0:02:55.6]} 4.
Bb2 {[%clk 0:02:58.7]} 4... Bd6 {[%clk 0:02:56]} 5. e3 {[%clk 0:02:58.2]} 5...
c6 {[%clk 0:02:55.8]} 6. c4 {[%clk 0:02:58.1]} 6... Ne7 {[%clk 0:02:54.5]} 7.
Nf3 {[%clk 0:02:56.1]} 7... f6 {[%clk 0:02:51.9]} 8. d4 {[%clk 0:02:53.7]} 8...
e4 {[%clk 0:02:51.6]} 9. Nfd2 {[%clk 0:02:54.3]} 9... O-O {[%clk 0:02:50.8]} 10.
Ba3 {[%clk 0:02:55]} 10... Bxa3 {[%clk 0:02:32.7]} 11. Nxa3 {[%clk 0:02:54.7]}
11... Be6 {[%clk 0:02:32.4]} 12. Be2 {[%clk 0:02:52.5]} 12... f5 {[%clk
0:02:31.3]} 13. g3 {[%clk 0:02:51.5]} 13... Nd7 {[%clk 0:02:31.2]} 14. h4 {[%clk
0:02:51.3]} 14... Nf6 {[%clk 0:02:29.6]} 15. Qb3 {[%clk 0:02:49.7]} 15... c5
{[%clk 0:02:26.8]} 16. dxc5 {[%clk 0:02:25.7]} 16... d4 {[%clk 0:02:26.5]} 17.
Qb2 {[%clk 0:02:26.3]} 17... d3 {[%clk 0:02:26]} 18. Bd1 {[%clk 0:02:26.4]}
18... Rc8 {[%clk 0:02:16.8]} 19. Qe5 {[%clk 0:02:24.1]} 19... Qd7 {[%clk
0:02:16.9]} 20. Qd6 {[%clk 0:02:17.8]} 20... Rfd8 {[%clk 0:02:14.1]} 21. Qxd7
{[%clk 0:02:16.2]} 21... Rxd7 {[%clk 0:02:15]} 22. Nb3 {[%clk 0:02:12.4]} 22...
Ng6 {[%clk 0:01:52.9]} 23. Nd4 {[%clk 0:02:01.7]} 23... Kf7 {[%clk 0:01:52.5]}
24. c6 {[%clk 0:02:01.5]} 24... bxc6 {[%clk 0:01:51.4]} 25. bxc6 {[%clk
0:01:58.6]} 25... Rdd8 {[%clk 0:01:51.3]} 26. Rb1 {[%clk 0:01:50.3]} 26... Ng4
{[%clk 0:01:31]} 27. Rb7+ {[%clk 0:01:39.5]} 27... Kf6 {[%clk 0:01:30.9]} 28.
Bxg4 {[%clk 0:01:36.9]} 28... fxg4 {[%clk 0:01:29.9]} 29. c7 {[%clk 0:01:34.8]}
29... Rd7 {[%clk 0:01:05.4]} 30. Rb6 {[%clk 0:01:33.6]} 30... Re7 {[%clk
0:01:00.4]} 31. Nab5 {[%clk 0:01:32.3]} 31... Ne5 {[%clk 0:01:00.5]} 32. Nxe6
{[%clk 0:01:11.5]} 32... Rxe6 {[%clk 0:00:57.8]} 33. Nd6 {[%clk 0:01:11.7]}
33... Rxd6 {[%clk 0:00:41]} 34. Rxd6+ {[%clk 0:01:11.1]} 34... Ke7 {[%clk
0:00:40.9]} 35. Rd5 {[%clk 0:00:42.1]} 35... Nf3+ {[%clk 0:00:35.7]} 36. Kf1
{[%clk 0:00:41.9]} 36... Rxc7 {[%clk 0:00:30.3]} 37. Kg2 {[%clk 0:00:42.3]}
37... Rxc4 {[%clk 0:00:29.8]} 38. Rxa5 {[%clk 0:00:41.5]} 38... d2 {[%clk
0:00:24.2]} 39. Rd5 {[%clk 0:00:38.3]} 39... Rxa4 {[%clk 0:00:24.1]} 40. Rd1
{[%clk 0:00:36.8]} 40... Ra2 {[%clk 0:00:20.6]} 41. Kf1 {[%clk 0:00:35.8]} 41...
Ke6 {[%clk 0:00:18.6]} 42. Rd8 {[%clk 0:00:35.4]} 42... Rc2 {[%clk 0:00:18.5]}
43. Ke2 {[%clk 0:00:34.5]} 43... h5 {[%clk 0:00:18.1]} 44. Ra8 {[%clk
0:00:29.5]} 44... Rc6 {[%clk 0:00:17.6]} 45. Ra7 {[%clk 0:00:23]} 45... g6
{[%clk 0:00:17.5]} 46. Ra5 {[%clk 0:00:22.7]} 46... Kf6 {[%clk 0:00:17.1]} 47.
Rd5 {[%clk 0:00:21.1]} 47... Rb6 {[%clk 0:00:16.5]} 48. Ra1 {[%clk 0:00:20.6]}
48... Rc6 {[%clk 0:00:15.7]} 49. Rd1 {[%clk 0:00:20.6]} 49... Ke6 {[%clk
0:00:14.9]} 50. Ra5 {[%clk 0:00:20.1]} 50... Kd6 {[%clk 0:00:14.7]} 51. Ra4
{[%clk 0:00:20.3]} 51... Kd5 {[%clk 0:00:13.1]} 52. Rb4 {[%clk 0:00:19.9]} 52...
Rc2 {[%clk 0:00:12.6]} 53. Rb6 {[%clk 0:00:13.6]} 53... Kc4 {[%clk 0:00:11.6]}
54. Rxg6 {[%clk 0:00:12.9]} 54... Kb3 {[%clk 0:00:11.3]} 55. Rh6 {[%clk
0:00:12.4]} 55... Rc5 {[%clk 0:00:10.5]} 56. Re6 {[%clk 0:00:11.7]} 56... Rc4
{[%clk 0:00:09.7]} 57. Rd6 {[%clk 0:00:10.1]} 57... Kc3 {[%clk 0:00:09.5]} 58.
Rd5 {[%clk 0:00:10]} 58... Kc2 {[%clk 0:00:08.4]} 59. Rxh5 {[%clk 0:00:09.7]}
59... Rc3 {[%clk 0:00:08.7]} 60. Rd5 {[%clk 0:00:09.5]} 60... Rd3 {[%clk
0:00:08.2]} 61. Rc5+ {[%clk 0:00:09.7]} 61... Kb2 {[%clk 0:00:08]} 62. h5 {[%clk
0:00:09.7]} 62... Rd6 {[%clk 0:00:06.8]} 63. Rc4 {[%clk 0:00:09]} 63... Re6
{[%clk 0:00:04.4]} 64. h6 {[%clk 0:00:08.5]} 64... Rxh6 {[%clk 0:00:04.4]} 65.
Rxe4 {[%clk 0:00:08.9]} 65... Kc3 {[%clk 0:00:05]} 66. Rxg4 {[%clk 0:00:09]}
66... Ne5 {[%clk 0:00:04.4]} 67. Rd4 {[%clk 0:00:09.2]} 67... Nc4 {[%clk
0:00:02.5]} 68. Rxc4+ {[%clk 0:00:09.3]} 68... Kxc4 {[%clk 0:00:03.4]} 69. Rxd2
{[%clk 0:00:10.2]} 69... Kc3 {[%clk 0:00:02.5]} 70. Rd4 {[%clk 0:00:11.1]} 70...
Rf6 {[%clk 0:00:02]} 71. g4 {[%clk 0:00:11.5]} 71... Rf8 {[%clk 0:00:00.8]} 72.
g5 {[%clk 0:00:11.3]} 72... Rf5 {[%clk 0:00:00.3]} 73. f4 {[%clk 0:00:11.6]}
73... Rf8 {[%clk 0:00:00.5]} 74. Kf3 {[%clk 0:00:12.1]} 74... Rg8 {[%clk
0:00:01.4]} 75. Kg4 {[%clk 0:00:11.9]} 75... Rh8 {[%clk 0:00:02.3]} 76. g6
{[%clk 0:00:12.2]} 76... Rh1 {[%clk 0:00:03.2]} 77. f5 {[%clk 0:00:11.7]} 77...
Re1 {[%clk 0:00:03.4]} 78. Kf4 {[%clk 0:00:12.2]} 78... Rf1+ {[%clk 0:00:03.5]}
79. Ke5 {[%clk 0:00:12.3]} 79... Rf2 {[%clk 0:00:03.4]} 80. g7 {[%clk
0:00:12.1]} 80... Rf3 {[%clk 0:00:03.9]} 81. g8=Q {[%clk 0:00:11.6]} 1-0

[Event "Early-Titled-Tuesday-Blitz-May-14-2024"]
[Site "Chess.com"]
[Date "2024.05.14"]
[Round "6"]
[White "laboratorio25"]
[Black "Ginger_GM"]
[Result "0-1"]
[WhiteElo "2543"]
[BlackElo "2666"]
[TimeControl "180+1"]
[EndTime "9:10:35 PDT"]
[Termination "Ginger_GM won on time"]

1. e4 {[%clk 0:03:00.9]} 1... d6 {[%clk 0:02:58.2]} 2. d4 {[%clk 0:03:00.7]}
2... Nf6 {[%clk 0:02:57.4]} 3. Nc3 {[%clk 0:03:01.1]} 3... Nbd7 {[%clk
0:02:57.7]} 4. Nf3 {[%clk 0:03:01.2]} 4... e5 {[%clk 0:02:57.7]} 5. Bc4 {[%clk
0:03:01.7]} 5... Be7 {[%clk 0:02:57.6]} 6. O-O {[%clk 0:03:01.7]} 6... c6 {[%clk
0:02:57.9]} 7. Re1 {[%clk 0:03:02.2]} 7... Qc7 {[%clk 0:02:55.6]} 8. a4 {[%clk
0:03:02.2]} 8... h6 {[%clk 0:02:55.6]} 9. h3 {[%clk 0:03:00.1]} 9... g5 {[%clk
0:02:55.1]} 10. dxe5 {[%clk 0:02:54.4]} 10... dxe5 {[%clk 0:02:54.8]} 11. Bxg5
{[%clk 0:02:49.7]} 11... hxg5 {[%clk 0:02:45.9]} 12. Nxg5 {[%clk 0:02:49.8]}
12... Rf8 {[%clk 0:02:23.9]} 13. Qf3 {[%clk 0:02:47.8]} 13... Nc5 {[%clk
0:02:15]} 14. Rad1 {[%clk 0:02:38.1]} 14... Ne6 {[%clk 0:02:11.2]} 15. Nxe6
{[%clk 0:02:05.8]} 15... Bxe6 {[%clk 0:02:10.3]} 16. Bxe6 {[%clk 0:02:03.2]}
16... fxe6 {[%clk 0:02:10.4]} 17. Qg3 {[%clk 0:01:55]} 17... Rg8 {[%clk
0:01:47.8]} 18. Qd3 {[%clk 0:01:45.7]} 18... Kf7 {[%clk 0:01:39.2]} 19. Qc4
{[%clk 0:01:41.3]} 19... Qb6 {[%clk 0:01:27]} 20. Rd3 {[%clk 0:01:22.3]} 20...
Rad8 {[%clk 0:01:18.2]} 21. Rf3 {[%clk 0:01:20.1]} 21... Rd4 {[%clk 0:01:16.7]}
22. Qa2 {[%clk 0:01:18.3]} 22... Qc5 {[%clk 0:01:11.3]} 23. Qb3 {[%clk 0:01:12]}
23... Qb4 {[%clk 0:01:07.4]} 24. Qa2 {[%clk 0:01:07.5]} 24... Qc4 {[%clk
0:01:07.9]} 25. b3 {[%clk 0:01:03.1]} 25... Qb4 {[%clk 0:01:00.3]} 26. Qb1
{[%clk 0:01:01.6]} 26... Ke8 {[%clk 0:00:55.7]} 27. Qc1 {[%clk 0:00:57.5]} 27...
Kd7 {[%clk 0:00:50.7]} 28. Nb1 {[%clk 0:00:21.7]} 28... Qd6 {[%clk 0:00:47.4]}
29. c3 {[%clk 0:00:20.6]} 29... Rxe4 {[%clk 0:00:41.4]} 30. Rd1 {[%clk
0:00:20.5]} 30... Nd5 {[%clk 0:00:40.9]} 31. c4 {[%clk 0:00:20.4]} 31... Kc8
{[%clk 0:00:21.2]} 32. cxd5 {[%clk 0:00:20.6]} 32... exd5 {[%clk 0:00:21.8]} 33.
Nc3 {[%clk 0:00:20.9]} 33... Rh4 {[%clk 0:00:19.6]} 34. Nxd5 {[%clk 0:00:19.8]}
34... Kb8 {[%clk 0:00:16.9]} 35. Ne3 {[%clk 0:00:18.7]} 35... Qg6 {[%clk
0:00:16.1]} 36. Kf1 {[%clk 0:00:15.8]} 36... Bc5 {[%clk 0:00:16.2]} 37. g3
{[%clk 0:00:15.6]} 37... Rxh3 {[%clk 0:00:16.1]} 38. Kg2 {[%clk 0:00:15.5]}
38... Rgh8 {[%clk 0:00:15.2]} 39. Nf1 {[%clk 0:00:13.4]} 39... Qe4 {[%clk
0:00:14.8]} 40. Qb1 {[%clk 0:00:11.4]} 40... Qg4 {[%clk 0:00:12]} 41. Qf5 {[%clk
0:00:09.9]} 41... Qxf5 {[%clk 0:00:11]} 42. Rxf5 {[%clk 0:00:10.2]} 42... Bd4
{[%clk 0:00:10.8]} 43. Kf3 {[%clk 0:00:09.8]} 43... Rh1 {[%clk 0:00:10.7]} 44.
Ke2 {[%clk 0:00:09.8]} 44... R1h7 {[%clk 0:00:08.7]} 45. Ne3 {[%clk 0:00:09.8]}
45... Kc7 {[%clk 0:00:08.9]} 46. Nc2 {[%clk 0:00:09.7]} 46... Bb2 {[%clk
0:00:05.7]} 47. Ne3 {[%clk 0:00:09.5]} 47... Rh2 {[%clk 0:00:04.9]} 48. Nc4
{[%clk 0:00:09.3]} 48... Bd4 {[%clk 0:00:05.3]} 49. Nxe5 {[%clk 0:00:08.6]}
49... c5 {[%clk 0:00:02.7]} 50. Ng4 {[%clk 0:00:07.7]} 50... Re8+ {[%clk
0:00:02.7]} 51. Kf3 {[%clk 0:00:04.6]} 51... Rh7 {[%clk 0:00:03.2]} 52. Ne3
{[%clk 0:00:04.8]} 52... Kb6 {[%clk 0:00:03.4]} 53. Rd3 {[%clk 0:00:04.5]} 53...
Ka6 {[%clk 0:00:03.7]} 54. Nc2 {[%clk 0:00:05.1]} 54... Rd7 {[%clk 0:00:02.7]}
55. Nxd4 {[%clk 0:00:05.1]} 55... cxd4 {[%clk 0:00:03.6]} 56. Rf4 {[%clk
0:00:05.2]} 56... Red8 {[%clk 0:00:04.1]} 57. Re4 {[%clk 0:00:05.7]} 57... Rd6
{[%clk 0:00:04.3]} 58. Ke2 {[%clk 0:00:06.2]} 58... Ka5 {[%clk 0:00:04.6]} 59.
g4 {[%clk 0:00:06.7]} 59... Kb4 {[%clk 0:00:05.1]} 60. g5 {[%clk 0:00:07.2]}
60... Ka3 {[%clk 0:00:05.2]} 61. f4 {[%clk 0:00:07.4]} 61... Rd5 {[%clk
0:00:04.8]} 62. Kf3 {[%clk 0:00:07.2]} 62... R8d7 {[%clk 0:00:05.1]} 63. Kg4
{[%clk 0:00:07.6]} 63... Kb2 {[%clk 0:00:05.7]} 64. Re2+ {[%clk 0:00:05.9]}
64... Ka3 {[%clk 0:00:04.8]} 65. Red2 {[%clk 0:00:06.4]} 65... Kb4 {[%clk
0:00:04.5]} 66. f5 {[%clk 0:00:06.8]} 66... a6 {[%clk 0:00:03.3]} 67. g6 {[%clk
0:00:06.7]} 67... Kc5 {[%clk 0:00:03.8]} 68. Rc2+ {[%clk 0:00:04.9]} 68... Kd6
{[%clk 0:00:04]} 69. Re2 {[%clk 0:00:05.2]} 69... Kc5 {[%clk 0:00:02.8]} 70. Kg5
{[%clk 0:00:03.9]} 70... Kb4 {[%clk 0:00:01.4]} 71. Re4 {[%clk 0:00:03.3]} 71...
Kc5 {[%clk 0:00:00.9]} 72. Rf4 {[%clk 0:00:02.2]} 72... Kd6 {[%clk 0:00:00.6]}
73. Kf6 {[%clk 0:00:01.8]} 73... Kc5 {[%clk 0:00:00.6]} 74. Kg5 {[%clk
0:00:01.9]} 74... R5d6 {[%clk 0:00:01.5]} 75. f6 {[%clk 0:00:01.6]} 75... Rd5+
{[%clk 0:00:02.4]} 76. Rf5 {[%clk 0:00:01.7]} 76... Rxf5+ {[%clk 0:00:03.3]} 77.
Kxf5 {[%clk 0:00:01.9]} 77... Kd5 {[%clk 0:00:03.9]} 78. g7 {[%clk 0:00:02]}
78... Rd8 {[%clk 0:00:04.1]} 79. f7 {[%clk 0:00:01.3]} 79... Kd6 {[%clk
0:00:05]} 0-1

[Event "Early-Titled-Tuesday-Blitz-May-14-2024"]
[Site "Chess.com"]
[Date "2024.05.14"]
[Round "6"]
[White "NelsonLinda"]
[Black "NinoMaisuradze"]
[Result "1-0"]
[WhiteElo "2622"]
[BlackElo "2367"]
[TimeControl "180+1"]
[EndTime "9:10:36 PDT"]
[Termination "NelsonLinda won by checkmate"]

1. d4 {[%clk 0:03:00.9]} 1... Nf6 {[%clk 0:02:59.4]} 2. Nf3 {[%clk 0:03:01.2]}
2... d5 {[%clk 0:02:58.2]} 3. e3 {[%clk 0:03:00.8]} 3... c5 {[%clk 0:02:57.6]}
4. c4 {[%clk 0:02:57.7]} 4... cxd4 {[%clk 0:02:55.6]} 5. exd4 {[%clk 0:02:52.5]}
5... g6 {[%clk 0:02:55]} 6. Nc3 {[%clk 0:02:51.3]} 6... Bg7 {[%clk 0:02:54.8]}
7. cxd5 {[%clk 0:02:40.7]} 7... O-O {[%clk 0:02:53.2]} 8. Bc4 {[%clk 0:02:39.7]}
8... Nbd7 {[%clk 0:02:53]} 9. O-O {[%clk 0:02:36.1]} 9... Nb6 {[%clk 0:02:53.2]}
10. Bb3 {[%clk 0:02:36.5]} 10... Nbxd5 {[%clk 0:02:53.6]} 11. h3 {[%clk
0:02:31.7]} 11... Bf5 {[%clk 0:02:46.8]} 12. Re1 {[%clk 0:02:12.7]} 12... Re8
{[%clk 0:02:17.1]} 13. Ne5 {[%clk 0:02:06.8]} 13... a6 {[%clk 0:02:05.3]} 14.
Bd2 {[%clk 0:02:04.5]} 14... Be6 {[%clk 0:01:52.5]} 15. Na4 {[%clk 0:01:49.2]}
15... Nc7 {[%clk 0:01:43.3]} 16. Ba5 {[%clk 0:01:37.5]} 16... b5 {[%clk
0:01:29.2]} 17. Bxe6 {[%clk 0:01:32.2]} 17... fxe6 {[%clk 0:01:22.5]} 18. Nc5
{[%clk 0:01:32.2]} 18... Qb8 {[%clk 0:01:01.9]} 19. Rc1 {[%clk 0:01:09.8]} 19...
Ncd5 {[%clk 0:00:57.6]} 20. Nc6 {[%clk 0:01:06.6]} 20... Qf4 {[%clk 0:00:54.7]}
21. Nxe6 {[%clk 0:01:04.5]} 21... Qh4 {[%clk 0:00:53]} 22. Nxg7 {[%clk 0:00:57]}
22... Kxg7 {[%clk 0:00:53.9]} 23. Nb4 {[%clk 0:00:46.6]} 23... Nxb4 {[%clk
0:00:51.9]} 24. Bxb4 {[%clk 0:00:47.5]} 24... Nd5 {[%clk 0:00:44.1]} 25. Qb3
{[%clk 0:00:28.3]} 25... Nf4 {[%clk 0:00:37.7]} 26. Qf3 {[%clk 0:00:07]} 26...
Qg5 {[%clk 0:00:35]} 27. Bd2 {[%clk 0:00:06.4]} 27... Nxh3+ {[%clk 0:00:34.2]}
28. Qxh3 {[%clk 0:00:06.8]} 28... Qxd2 {[%clk 0:00:35]} 29. Qe3 {[%clk
0:00:03.3]} 29... Qxe3 {[%clk 0:00:33.1]} 30. Rxe3 {[%clk 0:00:04.2]} 30... Rad8
{[%clk 0:00:32.1]} 31. Re4 {[%clk 0:00:03.2]} 31... Rd7 {[%clk 0:00:31.2]} 32.
Rc6 {[%clk 0:00:03.3]} 32... Ra8 {[%clk 0:00:28.9]} 33. Kf1 {[%clk 0:00:03]}
33... Kf7 {[%clk 0:00:28.5]} 34. Ke2 {[%clk 0:00:02]} 34... a5 {[%clk
0:00:28.3]} 35. Kd3 {[%clk 0:00:02]} 35... b4 {[%clk 0:00:27.7]} 36. Kc4 {[%clk
0:00:01.7]} 36... Rb7 {[%clk 0:00:25.8]} 37. Rc5 {[%clk 0:00:01.3]} 37... a4
{[%clk 0:00:25.4]} 38. Ree5 {[%clk 0:00:01.7]} 38... a3 {[%clk 0:00:23.4]} 39.
b3 {[%clk 0:00:02.1]} 39... Kg7 {[%clk 0:00:21]} 40. Rb5 {[%clk 0:00:02.5]}
40... Rc7+ {[%clk 0:00:19.1]} 41. Rec5 {[%clk 0:00:02.7]} 41... Rd7 {[%clk
0:00:14.6]} 42. Rxb4 {[%clk 0:00:02.6]} 42... Rad8 {[%clk 0:00:14.6]} 43. Kc3
{[%clk 0:00:02.4]} 43... Rf8 {[%clk 0:00:14.3]} 44. f3 {[%clk 0:00:02.4]} 44...
Rf4 {[%clk 0:00:14.7]} 45. Re5 {[%clk 0:00:02.7]} 45... Rh4 {[%clk 0:00:13.5]}
46. Re4 {[%clk 0:00:02.3]} 46... Rh2 {[%clk 0:00:13.4]} 47. Re2 {[%clk
0:00:02.7]} 47... h5 {[%clk 0:00:12.6]} 48. Ra4 {[%clk 0:00:02.7]} 48... Rc7+
{[%clk 0:00:12.5]} 49. Kd3 {[%clk 0:00:03.1]} 49... h4 {[%clk 0:00:10.5]} 50.
Rxa3 {[%clk 0:00:03.3]} 50... h3 {[%clk 0:00:10.1]} 51. gxh3 {[%clk 0:00:03.7]}
51... Rxh3 {[%clk 0:00:11]} 52. Rf2 {[%clk 0:00:02.9]} 52... g5 {[%clk
0:00:10.4]} 53. Ke4 {[%clk 0:00:02.8]} 53... Rc1 {[%clk 0:00:09.6]} 54. Ra5
{[%clk 0:00:03.1]} 54... Kg6 {[%clk 0:00:09.1]} 55. Ra6+ {[%clk 0:00:02.9]}
55... Kh5 {[%clk 0:00:09.2]} 56. Ra8 {[%clk 0:00:02.1]} 56... Re1+ {[%clk
0:00:08.9]} 57. Kf5 {[%clk 0:00:02.2]} 57... Kh4 {[%clk 0:00:09]} 58. Rh8+
{[%clk 0:00:02.8]} 58... Kg3 {[%clk 0:00:09.9]} 59. Rxh3+ {[%clk 0:00:03.4]}
59... Kxh3 {[%clk 0:00:10.8]} 60. Kxg5 {[%clk 0:00:02.6]} 60... Kg3 {[%clk
0:00:10.8]} 61. Rd2 {[%clk 0:00:03.2]} 61... Kxf3 {[%clk 0:00:10.8]} 62. d5
{[%clk 0:00:03.1]} 62... Ke3 {[%clk 0:00:09.4]} 63. d6 {[%clk 0:00:02.3]} 63...
Kxd2 {[%clk 0:00:06.3]} 64. d7 {[%clk 0:00:02.9]} 64... Rg1+ {[%clk 0:00:07.2]}
65. Kf5 {[%clk 0:00:03.5]} 65... Rg8 {[%clk 0:00:06.5]} 66. Ke6 {[%clk
0:00:04.1]} 66... Kc3 {[%clk 0:00:05.6]} 67. Kxe7 {[%clk 0:00:04.5]} 67... Kb2
{[%clk 0:00:05.6]} 68. d8=Q {[%clk 0:00:04.9]} 68... Rxd8 {[%clk 0:00:05.8]} 69.
Kxd8 {[%clk 0:00:05.8]} 69... Ka3 {[%clk 0:00:06.5]} 70. Kc7 {[%clk 0:00:06.2]}
70... Kb4 {[%clk 0:00:07.4]} 71. Kc6 {[%clk 0:00:06.7]} 71... Ka5 {[%clk
0:00:08.3]} 72. a4 {[%clk 0:00:06.7]} 72... Kb4 {[%clk 0:00:09.2]} 73. Kd5
{[%clk 0:00:07.3]} 73... Ka5 {[%clk 0:00:09.8]} 74. Kc4 {[%clk 0:00:07.7]} 74...
Kb6 {[%clk 0:00:10.1]} 75. b4 {[%clk 0:00:08.3]} 75... Ka6 {[%clk 0:00:11]} 76.
b5+ {[%clk 0:00:08.8]} 76... Kb6 {[%clk 0:00:11.9]} 77. Kb4 {[%clk 0:00:09.2]}
77... Ka7 {[%clk 0:00:12.4]} 78. a5 {[%clk 0:00:09.9]} 78... Kb7 {[%clk
0:00:13.3]} 79. b6 {[%clk 0:00:09.7]} 79... Ka8 {[%clk 0:00:14.2]} 80. Kb5
{[%clk 0:00:10.3]} 80... Kb8 {[%clk 0:00:15.1]} 81. a6 {[%clk 0:00:10.8]} 81...
Ka8 {[%clk 0:00:16]} 82. b7+ {[%clk 0:00:09.5]} 82... Kb8 {[%clk 0:00:16.9]} 83.
Kc6 {[%clk 0:00:10]} 83... Ka7 {[%clk 0:00:16.8]} 84. Kc7 {[%clk 0:00:10.6]}
84... Kxa6 {[%clk 0:00:17.4]} 85. b8=Q {[%clk 0:00:11.2]} 85... Ka5 {[%clk
0:00:18.3]} 86. Qb3 {[%clk 0:00:11.8]} 86... Ka6 {[%clk 0:00:18.5]} 87. Qb6#
{[%clk 0:00:12.5]} 1-0